Workbook

Sheet анализ (hidden)

Sheet Загальний ввод
A19: № | B19: Свердловина | C19: Початок експлуатації приладу | F19: Кінець експлуатації приладу | I19: Час експлуатації, год | J19: Час циркуляції, год | K19: Інтервал роботи, м | L19: Відмітка про проведення ремонту | M19: Примітки(дата, вид роботи) | N19: Циркуляція | O19: Час нижче ротора | P19: Механічні пульсатори | R19: НОБТ 203мм | U19: НОБТ 171,5 мм | X19: НОБТ 127 мм
C20: Дата | D20: Час, год | E20: Глибина, м | F20: Дата | G20: Час, год | H20: Глибина, м | I20: =SUM(I21:I38) -> 160.2930556 | J20: =IF(SUM(J21:J38)>0,SUM(J21:J38),0) -> 86.20555556 | K20: =SUM(K21:K38) -> 2518.3 | P20: Пульсатор СР0551 | Q20: Пульсатор СР0552 | R20: NMDC 203001 | S20: NMDC 203002 | T20: NMDC 203003 | U20: NMDC 1338 | V20: NMDC 1339 | W20: NMDC 1341 | X20: NMDC 127001 | Y20: NMDC 127002 | Z20: NMDC 127003
A21: 1 | B21: 300 Опішня | C21: 2018-10-03 | D21: 01:30:00 | E21: 3188.9 | F21: 2018-10-13 | G21: 08:00:00 | H21: 3314.8 | I21: =IF(F21>0,(F21+G21)-(C21+D21)," ") -> 10.27083333 | J21: 5.279166667 | K21: =IF(H21>0,H21-E21," ") -> 125.9 | Q21: 1 | T21: 1
A22: 2 | B22: 525 Кегичівка | C22: 2018-10-16 | D22: 08:18:00 | E22: 2055.4 | F22: 2018-10-25 | G22: 04:00:00 | H22: 2163.5 | I22: 8.820833333 | J22: 4.763888889 | K22: =IF(H22>0,H22-E22," ") -> 108.1 | Q22: 1
A23: 3 | B23: 33 Краснокутська | C23: 2018-11-28 | D23: 08:00:00 | E23: 3545 | F23: 2018-12-13 | G23: 12:45:00 | H23: 3623.1 | I23: 15.19791667 | J23: 8.743055556 | K23: =IF(H23>0,H23-E23," ") -> 78.1 | L23: Сервіс | M23: Проводили сервіс, замінили полипак смолл, ризинки в незадовільному стані, а саме, якісь дубові, тим самим вони пропустили невелику кількість бруду, на роботу пульсатора це ніяким чином не вплинуло. Сервіс провили при напрацюванні 450:52 годни циркуляції | N23: 11.20833333 | O23: 15.07638889 | Q23: 1 | S23: 1 | T23: 1
A24: 4 | B24: 22 Зах Борисівська | C24: 2019-01-04 | D24: 16:00:00 | E24: 926 | Q24: 1
A25: 7 | B25: 26 Червоноярська | C25: 2018-06-16 | D25: 03:00:00 | E25: 1080 | F25: 2018-06-22 | G25: 10:00:00 | H25: 1333.8 | I25: =IF(F25>0,(F25+G25)-(C25+D25)," ") -> 6.291666667 | J25: 4.625 | K25: =IF(H25>0,H25-E25," ") -> 253.8 | N25: 4.625 | O25: 6.291666667 | S25: 1 | T25: 1
A26: 8 | B26: 117 Медведівка | C26: 2018-06-29 | D26: 12:30:00 | E26: 1120.6 | F26: 2018-07-07 | G26: 05:00:00 | H26: 1458.5 | I26: 7.6875 | J26: 3.638888889 | K26: =IF(H26>0,H26-E26," ") -> 337.9 | L26: Сервіс | M26: Порушення цілісності мембрани сервоклапана, выкревлений вал сервоклапана | N26: 3.638888889 | O26: 7.6875 | S26: 1 | T26: 1
A27: 9 | K27: =IF(H27>0,H27-E27," ") -> 
A28: 1 | B28: 117 Медведівка | C28: 2018-07-18 | D28: 04:20:00 | E28: 2080 | F28: 2018-07-22 | G28: 12:30:00 | H28: 2247 | I28: =IF(F28>0,(F28+G28)-(C28+D28)," ") -> 4.340277778 | J28: 1.84375 | K28: 167 | N28: 1.84375 | O28: 3.180555556 | S28: 1 | T28: 1
A29: 2 | B29: 85 сх.Медведівка | C29: 2018-07-30 | D29: 11:35:00 | E29: 1774 | F29: 2018-08-05 | G29: 12:00:00 | H29: 2008.7 | I29: 6.017361111 | J29: 3.104166667 | K29: 234.7 | N29: 3.104166667 | O29: 5.395833333 | S29: 1 | T29: 1
B30: 73 Зах.Соснівська | C30: 2018-08-13 | D30: 16:30:00 | E30: 3430 | F30: 2018-09-01 | G30: 08:00:00 | H30: 3660 | I30: =IF(F30>0,F30-C30," ") -> 19 | J30: 10.89791667 | K30: =IF(H30>0,H30-E30," ") -> 230 | N30: 10.89791667 | O30: 17.22916667 | U30: 1 | V30: 1
B31: 300 Опішня | C31: 2018-09-16 | D31: 09:30:00 | E31: 3095 | F31: 2018-10-13 | G31: 08:00:00 | H31: 3314.8 | I31: 27 | J31: 11.78125 | K31: 219.8 | N31: 11.78125 | O31: 22.24305556 | S31: 1 | T31: 1
B32: 525 Кегичівка | C32: 2018-10-16 | D32: 08:18:00 | E32: 2055.4 | F32: 2018-10-25 | G32: 04:00:00 | H32: 2163.5 | I32: 9 | J32: 4.763888889 | K32: 108.1 | N32: 4.763888889 | O32: 9.125 | S32: 1 | T32: 1
B33: 33 Краснокутська | C33: 2018-11-28 | D33: 05:00:00 | E33: 3545 | F33: 2018-12-17 | G33: 18:00:00 | H33: 3679.3 | I33: =IF(F33>0,F33-C33," ") -> 19 | J33: 11.12152778 | K33: 134.3 | L33: Сервіс | M33: Сервіс ролл тесту проводили більш менш з меншими похибками біля прачечной на вході ПВБР | N33: 11.20833333 | O33: 15.07638889 | S33: 1 | T33: 1
B34: 22 Зах Борисівська | C34: 2019-01-04 | D34: 16:00:00 | E34: 926
B35: 117Медведівка | C35: 2018-10-20 | D35: 08:00:00 | E35: 3380 | F35: 2018-10-29 | G35: 08:00:00 | H35: 3521.7 | I35: =IF(F35>0,(F35+G35)-(C35+D35)," ") -> 9 | J35: 5.770833333 | K35: 141.7 | N35: 5.770833333 | O35: 8.083333333 | U35: 1 | V35: 1
B36: 160 Гадяч | C36: 2018-11-03 | D36: 08:00:00 | E36: 3073 | F36: 2018-11-14 | G36: 00:00:00 | H36: 3296 | I36: 10.66666667 | J36: 6.648611111 | K36: 223 | N36: 6.648611111 | O36: 9.895833333 | V36: 1 | W36: 1
B37: 50 Абазівка | C37: 2018-11-24 | D37: 08:00:00 | E37: 4005.6 | F37: 2018-12-02 | G37: 08:00:00 | H37: 4161.5 | I37: 8 | J37: 3.223611111 | K37: 155.9 | M37: 05-12-18 , переповнення пом'яті, зтирання пам'яті. | N37: 3.223611111 | O37: 10.1875 | V37: 1 | W37: 1
B39: РОБОТИ з 01.01.2019 р.
B40: 410 Біляївська | C40: 2019-01-06 | D40: 08:30:00 | E40: 3400.7 | I40: =IF(F40>0,(F40+G40)-(C40+D40)," ") ->  | K40: =IF(H40>0,H40-E40," ") ->  | V40: 1 | W40: 1
B41: 22 Зах Борисівська | C41: 2019-01-04 | D41: 16:00:00 | E41: 926 | S41: 1 | T41: 1

Sheet NMDC
K1: 41.66666667 | N1: 41.66666667 | Q1: 41.66666667
A2: N п/п | B2: Свердловина | C2: Дата початку експлуатації | F2: Дата кінця експлуатації | I2: Інтервал роботи, м | K2: NMDC 171 | N2: NMDC 203 | Q2: NMDC 127 | S2: сервіс NMDC | T2: сервіс NMDC | U2: сервіс NMDC | V2: Дифектоскопія NMDC | W2: Дифектоскопія NMDC | X2: Дифектоскопія NMDC
C3: Дата | D3: Час, год | E3: Глибина, м | F3: Дата | G3: Час, год | H3: Глибина, м | I3: =SUM(I4:I41) -> 1212.8 | J3: NMDC 1338 | K3: NMDC 1339 | L3: NMDC 1341 | M3: NMDC 203001 | N3: NMDC 203002 | O3: NMDC 203003 | P3: NMDC 127001 | Q3: NMDC 127002 | R3: NMDC 127003 | S3: 203 | T3: 171 | U3: 127 | V3: 203 | W3: 171 | X3: 127
B4: Заг.напр.циркуляція | J4: =K1-SUMIF(INDEX(B5:B978,IF(ISNA(MATCH("сервіс1338",T5:T978,)),1,SUMPRODUCT(MAX((T5:T978="сервіс1338")*ROW(J5:J978)))-10)):B978,#REF!,INDEX(J5:J978,IF(ISNA(MATCH("сервіс1338",T5:T978,)),1,SUMPRODUCT(MAX((T5:T978="сервіс1338")*ROW(J5:J978)))-10)):J978) ->  | K4: =K1-SUMIF(INDEX(B5:B978,IF(ISNA(MATCH("сервіс1339",T5:T978,)),1,SUMPRODUCT(MAX((T5:T978="сервіс1339")*ROW(K5:K978)))-10)):B978,#REF!,INDEX(K5:K978,IF(ISNA(MATCH("сервіс1339",T5:T978,)),1,SUMPRODUCT(MAX((T5:T978="сервіс1339")*ROW(K5:K978)))-10)):K978) ->  | L4: =K1-SUMIF(INDEX(B5:B978,IF(ISNA(MATCH("сервіс1341",T5:T978,)),1,SUMPRODUCT(MAX((T5:T978="сервіс1341")*ROW(L5:L978)))-10)):B978,#REF!,INDEX(L5:L978,IF(ISNA(MATCH("сервіс1341",T5:T978,)),1,SUMPRODUCT(MAX((T5:T978="сервіс1341")*ROW(L5:L978)))-10)):L978) ->  | M4: =N1-SUMIF(INDEX(B5:B978,IF(ISNA(MATCH("сервіс203001",S5:S978,)),1,SUMPRODUCT(MAX((S5:S978="сервіс203001")*ROW(M5:M978)))-10)):B978,#REF!,INDEX(M5:M978,IF(ISNA(MATCH("сервіс203001",S5:S978,)),1,SUMPRODUCT(MAX((S5:S978="сервіс203001")*ROW(M5:M978)))-10)):M978) -> 41.66666667 | N4: =N1-SUMIF(INDEX(B5:B978,IF(ISNA(MATCH("сервіс203002",S5:S978,)),1,SUMPRODUCT(MAX((S5:S978="сервіс203002")*ROW(N5:N978)))-10)):B978,#REF!,INDEX(N5:N978,IF(ISNA(MATCH("сервіс203002",S5:S978,)),1,SUMPRODUCT(MAX((S5:S978="сервіс203002")*ROW(N5:N978)))-10)):N978) -> 41.66666667 | O4: =N1-SUMIF(INDEX(B5:B978,IF(ISNA(MATCH("сервіс203003",S5:S978,)),1,SUMPRODUCT(MAX((S5:S978="сервіс203003")*ROW(O5:O978)))-10)):B978,#REF!,INDEX(O5:O978,IF(ISNA(MATCH("сервіс203003",S5:S978,)),1,SUMPRODUCT(MAX((S5:S978="сервіс203003")*ROW(O5:O978)))-10)):O978) -> 41.66666667 | P4: =Q1-SUMIF(INDEX(B5:B978,IF(ISNA(MATCH("сервіс127001",U5:U978,)),1,SUMPRODUCT(MAX((U5:U978="сервіс127001")*ROW(P5:P978)))-10)):B978,#REF!,INDEX(P5:P978,IF(ISNA(MATCH("сервіс127001",U5:U978,)),1,SUMPRODUCT(MAX((U5:U978="сервіс127001")*ROW(P5:P978)))-10)):P978) -> 41.66666667 | Q4: =Q1-SUMIF(INDEX(B5:B978,IF(ISNA(MATCH("сервіс127002",U5:U978,)),1,SUMPRODUCT(MAX((U5:U978="сервіс127002")*ROW(Q5:Q978)))-10)):B978,#REF!,INDEX(Q5:Q978,IF(ISNA(MATCH("сервіс127002",U5:U978,)),1,SUMPRODUCT(MAX((U5:U978="сервіс127002")*ROW(Q5:Q978)))-10)):Q978) -> 41.66666667 | R4: =Q1-SUMIF(INDEX(B5:B978,IF(ISNA(MATCH("сервіс127003",U5:U978,)),1,SUMPRODUCT(MAX((U5:U978="сервіс127003")*ROW(R5:R978)))-10)):B978,#REF!,INDEX(R5:R978,IF(ISNA(MATCH("сервіс127003",U5:U978,)),1,SUMPRODUCT(MAX((U5:U978="сервіс127003")*ROW(R5:R978)))-10)):R978) -> 41.66666667
A5: 5 | B5: 73 Зах.Соснівська | C5: 2018-08-13 | D5: 16:30:00 | E5: 3430 | F5: 2018-09-01 | G5: 08:00:00 | H5: 3660 | I5: =H5-E5 -> 230
B6: Циркуляція | J6: =IF('Загальний ввод'!U30<1,0,'Загальний ввод'!N30) -> 10.89791667 | K6: =IF('Загальний ввод'!V30<1,0,'Загальний ввод'!N30) -> 10.89791667 | L6: =IF('Загальний ввод'!W30<1,0,'Загальний ввод'!N30) -> 0
B7: Інтервал роботи | J7: =IF('Загальний ввод'!U30<1,0,'Загальний ввод'!K30) -> 230 | K7: =IF('Загальний ввод'!V30<1,0,'Загальний ввод'!K30) -> 230 | L7: =IF('Загальний ввод'!W30<1,0,'Загальний ввод'!K30) -> 0 | T7: сервіс1338
B8: Час нижче ротора | J8: =IF('Загальний ввод'!U30<1,0,'Загальний ввод'!O30) -> 17.22916667 | K8: =IF('Загальний ввод'!V30<1,0,'Загальний ввод'!O30) -> 17.22916667 | L8: =IF('Загальний ввод'!W30<1,0,'Загальний ввод'!O30) -> 0 | T8: сервіс1339
A9: 6 | B9: 300 Опішня | C9: 2018-09-16 | D9: 09:30:00 | E9: 3095 | F9: 2018-10-13 | G9: 08:00:00 | H9: 3314.8 | I9: 219.8 | T9: сервіс1341
B10: Циркуляція | M10: =IF('Загальний ввод'!R31<1,0,'Загальний ввод'!N31) -> 0 | N10: =IF('Загальний ввод'!S31<1,0,'Загальний ввод'!N31) -> 11.78125 | O10: =IF('Загальний ввод'!T31<1,0,'Загальний ввод'!N31) -> 11.78125
B11: Інтервал роботи | M11: =IF('Загальний ввод'!R31<1,0,'Загальний ввод'!K31) -> 0 | N11: =IF('Загальний ввод'!S31<1,0,'Загальний ввод'!K31) -> 219.8 | O11: =IF('Загальний ввод'!T31<1,0,'Загальний ввод'!K31) -> 219.8 | W11: дифектоскопія1338
B12: Час нижче ротора | M12: =IF('Загальний ввод'!R31<1,0,'Загальний ввод'!O31) -> 0 | N12: =IF('Загальний ввод'!S31<1,0,'Загальний ввод'!O31) -> 22.24305556 | O12: =IF('Загальний ввод'!T31<1,0,'Загальний ввод'!O31) -> 22.24305556 | W12: дифектоскопія1339
A13: 7 | B13: 525 Кегичівка | C13: 2018-10-16 | D13: 08:18:00 | E13: 2055.4 | F13: 2018-10-25 | G13: 04:00:00 | H13: 2163.5 | I13: =H13-E13 -> 108.1
B14: Циркуляція | M14: =IF('Загальний ввод'!R32<1,0,'Загальний ввод'!N32) -> 0 | N14: =IF('Загальний ввод'!S32<1,0,'Загальний ввод'!N32) -> 4.763888889 | O14: =IF('Загальний ввод'!T32<1,0,'Загальний ввод'!N32) -> 4.763888889 | S14: сервіс203001 | V14: дифектоскопія203003
B15: Інтервал роботи | M15: =IF('Загальний ввод'!R32<1,0,'Загальний ввод'!K32) -> 0 | N15: =IF('Загальний ввод'!S32<1,0,'Загальний ввод'!K32) -> 108.1 | O15: =IF('Загальний ввод'!T32<1,0,'Загальний ввод'!K32) -> 108.1 | S15: сервіс203002 | V15: дифектоскопія203001
B16: Час нижче ротора | M16: =IF('Загальний ввод'!R32<1,0,'Загальний ввод'!O32) -> 0 | N16: =IF('Загальний ввод'!S32<1,0,'Загальний ввод'!O32) -> 9.125 | O16: =IF('Загальний ввод'!T32<1,0,'Загальний ввод'!O32) -> 9.125 | S16: сервіс203003 | V16: дифектоскопія203002
A17: 8 | B17: 117Медведівка | C17: 2018-10-20 | D17: 08:00:00 | E17: 3380 | F17: 2018-10-29 | G17: 08:00:00 | H17: 3521.7 | I17: =H17-E17 -> 141.7
A18: 9 | B18: Циркуляція | J18: =IF('Загальний ввод'!U35<1,0,'Загальний ввод'!N35) -> 5.770833333 | K18: =IF('Загальний ввод'!V35<1,0,'Загальний ввод'!N35) -> 5.770833333 | L18: =IF('Загальний ввод'!W35<1,0,'Загальний ввод'!N35) -> 0
B19: Інтервал роботи | J19: =IF('Загальний ввод'!U35<1,0,'Загальний ввод'!K35) -> 141.7 | K19: =IF('Загальний ввод'!V35<1,0,'Загальний ввод'!K35) -> 141.7 | L19: =IF('Загальний ввод'!W35<1,0,'Загальний ввод'!K35) -> 0
B20: Час нижче ротора | J20: =IF('Загальний ввод'!U35<1,0,'Загальний ввод'!O35) -> 8.083333333 | K20: =IF('Загальний ввод'!V35<1,0,'Загальний ввод'!O35) -> 8.083333333 | L20: =IF('Загальний ввод'!W35<1,0,'Загальний ввод'!O35) -> 0
A21: 9 | B21: 160 Гадяч | C21: 2018-11-03 | D21: 08:00:00 | E21: 3073 | F21: 2018-11-14 | G21: 00:00:00 | H21: 3296 | I21: =H21-E21 -> 223
A22: 45 | B22: Циркуляція | J22: =IF('Загальний ввод'!U36<1,0,'Загальний ввод'!N36) -> 0 | K22: =IF('Загальний ввод'!V36<1,0,'Загальний ввод'!N36) -> 6.648611111 | L22: =IF('Загальний ввод'!W36<1,0,'Загальний ввод'!N36) -> 6.648611111
B23: Інтервал роботи | J23: =IF('Загальний ввод'!U36<1,0,'Загальний ввод'!K36) -> 0 | K23: =IF('Загальний ввод'!V36<1,0,'Загальний ввод'!K36) -> 223 | L23: =IF('Загальний ввод'!W36<1,0,'Загальний ввод'!K36) -> 223
B24: Час нижче ротора | J24: =IF('Загальний ввод'!U36<1,0,'Загальний ввод'!O36) -> 0 | K24: =IF('Загальний ввод'!V36<1,0,'Загальний ввод'!O36) -> 9.895833333 | L24: =IF('Загальний ввод'!W36<1,0,'Загальний ввод'!O36) -> 9.895833333
A25: 10 | B25: 33 Краснокутська | C25: 2018-11-28 | D25: 05:00:00 | E25: 3545 | F25: 2018-12-17 | G25: 18:00:00 | H25: 3679.3 | I25: =H25-E25 -> 134.3
B26: Циркуляція | M26: =IF('Загальний ввод'!R33<1,0,'Загальний ввод'!N33) -> 0 | N26: =IF('Загальний ввод'!S33<1,0,'Загальний ввод'!N33) -> 11.20833333 | O26: =IF('Загальний ввод'!T33<1,0,'Загальний ввод'!N33) -> 11.20833333
B27: Інтервал роботи | M27: =IF('Загальний ввод'!R33<1,0,'Загальний ввод'!K33) -> 0 | N27: =IF('Загальний ввод'!S33<1,0,'Загальний ввод'!K33) -> 134.3 | O27: =IF('Загальний ввод'!T33<1,0,'Загальний ввод'!K33) -> 134.3
B28: Час нижче ротора | M28: =IF('Загальний ввод'!R33<1,0,'Загальний ввод'!O33) -> 0 | N28: =IF('Загальний ввод'!S33<1,0,'Загальний ввод'!O33) -> 15.07638889 | O28: =IF('Загальний ввод'!T33<1,0,'Загальний ввод'!O33) -> 15.07638889
A29: 11 | B29: 50 Абазівка | C29: 2018-11-24 | D29: 08:00:00 | E29: 4005.6 | F29: 2018-12-02 | G29: 08:00:00 | H29: 4161.5 | I29: =H29-E29 -> 155.9
B30: Циркуляція | J30: =IF('Загальний ввод'!U37<1,0,'Загальний ввод'!N37) -> 0 | K30: =IF('Загальний ввод'!V37<1,0,'Загальний ввод'!N37) -> 3.223611111 | L30: =IF('Загальний ввод'!W37<1,0,'Загальний ввод'!N37) -> 3.223611111
B31: Інтервал роботи | J31: =IF('Загальний ввод'!U37<1,0,'Загальний ввод'!K37) -> 0 | K31: =IF('Загальний ввод'!V37<1,0,'Загальний ввод'!K37) -> 155.9 | L31: =IF('Загальний ввод'!W37<1,0,'Загальний ввод'!K37) -> 155.9
B32: Час нижче ротора | J32: =IF('Загальний ввод'!U37<1,0,'Загальний ввод'!O37) -> 0 | K32: =IF('Загальний ввод'!V37<1,0,'Загальний ввод'!O37) -> 10.1875 | L32: =IF('Загальний ввод'!W37<1,0,'Загальний ввод'!O37) -> 10.1875
A33: =IF(SUM('Загальний ввод'!R41:Z41),'Загальний ввод'!B41,"?") -> 22 Зах Борисівська | B33: 22 Зах Борисівська | C33: 2019-01-04 | D33: 16:00:00 | E33: 926
A34: =IF(SUM('Загальний ввод'!R42:Z42),'Загальний ввод'!B42,"?") -> ? | B34: Циркуляція
A35: =IF(SUM('Загальний ввод'!R43:Z43),'Загальний ввод'!B43,"?") -> ? | B35: Інтервал роботи
A36: =IF(SUM('Загальний ввод'!R44:Z44),'Загальний ввод'!B44,"?") -> ? | B36: Час нижче ротора
A37: =IF(SUM('Загальний ввод'!R45:Z45),'Загальний ввод'!B45,"?") -> ? | B37: 410 Біляївська | C37: 2019-01-06 | D37: 08:30:00 | E37: 3400.7
A38: =IF(SUM('Загальний ввод'!R46:Z46),'Загальний ввод'!B46,"?") -> ? | B38: Циркуляція
A39: =IF(SUM('Загальний ввод'!R47:Z47),'Загальний ввод'!B47,"?") -> ? | B39: Інтервал роботи
A40: =IF(SUM('Загальний ввод'!R48:Z48),'Загальний ввод'!B48,"?") -> ? | B40: Час нижче ротора
A41: =IF(SUM('Загальний ввод'!R49:Z49),'Загальний ввод'!B49,"?") -> ?
A42: =IF(SUM('Загальний ввод'!R50:Z50),'Загальний ввод'!B50,"?") -> ?
A44: =IF(SUM('Загальний ввод'!R52:Z52),'Загальний ввод'!B52,"?") -> ?
A45: =IF(SUM('Загальний ввод'!R53:Z53),'Загальний ввод'!B53,"?") -> ?
A46: =IF(SUM('Загальний ввод'!R54:Z54),'Загальний ввод'!B54,"?") -> ?
A47: =IF(SUM('Загальний ввод'!R55:Z55),'Загальний ввод'!B55,"?") -> ? | B47: =IF('Загальний ввод'!R21=1,'Загальний ввод'!B21,IF('Загальний ввод'!S21=1,'Загальний ввод'!B21,IF('Загальний ввод'!T21=1,'Загальний ввод'!B21,))) -> 300 Опішня
A48: =IF(SUM('Загальний ввод'!R56:Z56),'Загальний ввод'!B56,"?") -> ? | B48: =IF('Загальний ввод'!R22<1,0,IF('Загальний ввод'!S22<1,0,IF('Загальний ввод'!T22<1,0,'Загальний ввод'!B22))) -> 0
A49: =IF(SUM('Загальний ввод'!R57:Z57),'Загальний ввод'!B57,"?") -> ? | B49: =IF('Загальний ввод'!R23<1,0,IF('Загальний ввод'!S23<1,0,IF('Загальний ввод'!T23<1,0,'Загальний ввод'!B23))) -> 0
A50: =IF(SUM('Загальний ввод'!R58:Z58),'Загальний ввод'!B58,"?") -> ? | B50: =IF('Загальний ввод'!R24<1,0,IF('Загальний ввод'!S24<1,0,IF('Загальний ввод'!T24<1,0,'Загальний ввод'!B24))) -> 0
A51: =IF(SUM('Загальний ввод'!R59:Z59),'Загальний ввод'!B59,"?") -> ? | B51: =IF('Загальний ввод'!#REF!<1,0,IF('Загальний ввод'!#REF!<1,0,IF('Загальний ввод'!#REF!<1,0,'Загальний ввод'!#REF!))) -> 
A52: =IF(SUM('Загальний ввод'!R60:Z60),'Загальний ввод'!B60,"?") -> ? | B52: =IF('Загальний ввод'!#REF!<1,0,IF('Загальний ввод'!#REF!<1,0,IF('Загальний ввод'!#REF!<1,0,'Загальний ввод'!#REF!))) -> 
A53: =IF(SUM('Загальний ввод'!R61:Z61),'Загальний ввод'!B61,"?") -> ? | B53: =IF('Загальний ввод'!#REF!<1,0,IF('Загальний ввод'!#REF!<1,0,IF('Загальний ввод'!#REF!<1,0,'Загальний ввод'!#REF!))) -> 
A54: =IF(SUM('Загальний ввод'!R62:Z62),'Загальний ввод'!B62,"?") -> ? | B54: =IF('Загальний ввод'!#REF!<1,0,IF('Загальний ввод'!#REF!<1,0,IF('Загальний ввод'!#REF!<1,0,'Загальний ввод'!#REF!))) -> 
A55: =IF(SUM('Загальний ввод'!R63:Z63),'Загальний ввод'!B63,"?") -> ? | B55: =IF('Загальний ввод'!#REF!<1,0,IF('Загальний ввод'!#REF!<1,0,IF('Загальний ввод'!#REF!<1,0,'Загальний ввод'!#REF!))) -> 
A56: =IF(SUM('Загальний ввод'!R64:Z64),'Загальний ввод'!B64,"?") -> ? | B56: =IF('Загальний ввод'!#REF!<1,0,IF('Загальний ввод'!#REF!<1,0,IF('Загальний ввод'!#REF!<1,0,'Загальний ввод'!#REF!))) -> 
A57: =IF(SUM('Загальний ввод'!R65:Z65),'Загальний ввод'!B65,"?") -> ? | B57: =IF('Загальний ввод'!#REF!<1,0,IF('Загальний ввод'!#REF!<1,0,IF('Загальний ввод'!#REF!<1,0,'Загальний ввод'!#REF!))) -> 
A58: =IF(SUM('Загальний ввод'!R66:Z66),'Загальний ввод'!B66,"?") -> ? | B58: =IF('Загальний ввод'!#REF!<1,0,IF('Загальний ввод'!#REF!<1,0,IF('Загальний ввод'!#REF!<1,0,'Загальний ввод'!#REF!))) -> 
A59: =IF(SUM('Загальний ввод'!R67:Z67),'Загальний ввод'!B67,"?") -> ? | B59: =IF('Загальний ввод'!#REF!<1,0,IF('Загальний ввод'!#REF!<1,0,IF('Загальний ввод'!#REF!<1,0,'Загальний ввод'!#REF!))) -> 
A60: =IF(SUM('Загальний ввод'!R68:Z68),'Загальний ввод'!B68,"?") -> ? | B60: =IF('Загальний ввод'!#REF!<1,0,IF('Загальний ввод'!#REF!<1,0,IF('Загальний ввод'!#REF!<1,0,'Загальний ввод'!#REF!))) -> 
A61: =IF(SUM('Загальний ввод'!R69:Z69),'Загальний ввод'!B69,"?") -> ? | B61: =IF('Загальний ввод'!#REF!<1,0,IF('Загальний ввод'!#REF!<1,0,IF('Загальний ввод'!#REF!<1,0,'Загальний ввод'!#REF!))) -> 
A62: =IF(SUM('Загальний ввод'!R70:Z70),'Загальний ввод'!B70,"?") -> ? | B62: =IF('Загальний ввод'!#REF!<1,0,IF('Загальний ввод'!#REF!<1,0,IF('Загальний ввод'!#REF!<1,0,'Загальний ввод'!#REF!))) -> 
A63: =IF(SUM('Загальний ввод'!R71:Z71),'Загальний ввод'!B71,"?") -> ? | B63: =IF('Загальний ввод'!#REF!<1,0,IF('Загальний ввод'!#REF!<1,0,IF('Загальний ввод'!#REF!<1,0,'Загальний ввод'!#REF!))) -> 
A64: =IF(SUM('Загальний ввод'!R72:Z72),'Загальний ввод'!B72,"?") -> ? | B64: =IF('Загальний ввод'!#REF!<1,0,IF('Загальний ввод'!#REF!<1,0,IF('Загальний ввод'!#REF!<1,0,'Загальний ввод'!#REF!))) -> 
A65: =IF(SUM('Загальний ввод'!R73:Z73),'Загальний ввод'!B73,"?") -> ? | B65: =IF('Загальний ввод'!#REF!<1,0,IF('Загальний ввод'!#REF!<1,0,IF('Загальний ввод'!#REF!<1,0,'Загальний ввод'!#REF!))) -> 
A66: =IF(SUM('Загальний ввод'!R74:Z74),'Загальний ввод'!B74,"?") -> ? | B66: =IF('Загальний ввод'!#REF!<1,0,IF('Загальний ввод'!#REF!<1,0,IF('Загальний ввод'!#REF!<1,0,'Загальний ввод'!#REF!))) -> 
A67: =IF(SUM('Загальний ввод'!R75:Z75),'Загальний ввод'!B75,"?") -> ? | B67: =IF('Загальний ввод'!R25<1,0,IF('Загальний ввод'!S25<1,0,IF('Загальний ввод'!T25<1,0,'Загальний ввод'!B25))) -> 0
A68: =IF(SUM('Загальний ввод'!R76:Z76),'Загальний ввод'!B76,"?") -> ? | B68: =IF('Загальний ввод'!R26<1,0,IF('Загальний ввод'!S26<1,0,IF('Загальний ввод'!T26<1,0,'Загальний ввод'!B26))) -> 0
A69: =IF(SUM('Загальний ввод'!R77:Z77),'Загальний ввод'!B77,"?") -> ? | B69: =IF('Загальний ввод'!R27<1,0,IF('Загальний ввод'!S27<1,0,IF('Загальний ввод'!T27<1,0,'Загальний ввод'!B27))) -> 0
A70: =IF(SUM('Загальний ввод'!R78:Z78),'Загальний ввод'!B78,"?") -> ? | B70: =IF('Загальний ввод'!R28<1,0,IF('Загальний ввод'!S28<1,0,IF('Загальний ввод'!T28<1,0,'Загальний ввод'!B28))) -> 0
A71: =IF(SUM('Загальний ввод'!R79:Z79),'Загальний ввод'!B79,"?") -> ? | B71: =IF('Загальний ввод'!R29<1,0,IF('Загальний ввод'!S29<1,0,IF('Загальний ввод'!T29<1,0,'Загальний ввод'!B29))) -> 0
A72: =IF(SUM('Загальний ввод'!R80:Z80),'Загальний ввод'!B80,"?") -> ? | B72: =IF('Загальний ввод'!#REF!<1,0,IF('Загальний ввод'!#REF!<1,0,IF('Загальний ввод'!#REF!<1,0,'Загальний ввод'!#REF!))) -> 
A73: =IF(SUM('Загальний ввод'!R81:Z81),'Загальний ввод'!B81,"?") -> ? | B73: =IF('Загальний ввод'!#REF!<1,0,IF('Загальний ввод'!#REF!<1,0,IF('Загальний ввод'!#REF!<1,0,'Загальний ввод'!#REF!))) -> 
A74: =IF(SUM('Загальний ввод'!R82:Z82),'Загальний ввод'!B82,"?") -> ? | B74: =IF('Загальний ввод'!#REF!<1,0,IF('Загальний ввод'!#REF!<1,0,IF('Загальний ввод'!#REF!<1,0,'Загальний ввод'!#REF!))) -> 
A75: =IF(SUM('Загальний ввод'!R83:Z83),'Загальний ввод'!B83,"?") -> ? | B75: =IF('Загальний ввод'!#REF!<1,0,IF('Загальний ввод'!#REF!<1,0,IF('Загальний ввод'!#REF!<1,0,'Загальний ввод'!#REF!))) -> 
A76: =IF(SUM('Загальний ввод'!R84:Z84),'Загальний ввод'!B84,"?") -> ? | B76: =IF('Загальний ввод'!#REF!<1,0,IF('Загальний ввод'!#REF!<1,0,IF('Загальний ввод'!#REF!<1,0,'Загальний ввод'!#REF!))) -> 
A77: =IF(SUM('Загальний ввод'!R85:Z85),'Загальний ввод'!B85,"?") -> ? | B77: =IF('Загальний ввод'!#REF!<1,0,IF('Загальний ввод'!#REF!<1,0,IF('Загальний ввод'!#REF!<1,0,'Загальний ввод'!#REF!))) -> 
A78: =IF(SUM('Загальний ввод'!R86:Z86),'Загальний ввод'!B86,"?") -> ? | B78: =IF('Загальний ввод'!#REF!<1,0,IF('Загальний ввод'!#REF!<1,0,IF('Загальний ввод'!#REF!<1,0,'Загальний ввод'!#REF!))) -> 
A79: =IF(SUM('Загальний ввод'!R87:Z87),'Загальний ввод'!B87,"?") -> ? | B79: =IF('Загальний ввод'!#REF!<1,0,IF('Загальний ввод'!#REF!<1,0,IF('Загальний ввод'!#REF!<1,0,'Загальний ввод'!#REF!))) -> 
A80: =IF(SUM('Загальний ввод'!R88:Z88),'Загальний ввод'!B88,"?") -> ? | B80: =IF('Загальний ввод'!#REF!<1,0,IF('Загальний ввод'!#REF!<1,0,IF('Загальний ввод'!#REF!<1,0,'Загальний ввод'!#REF!))) -> 
A81: =IF(SUM('Загальний ввод'!R89:Z89),'Загальний ввод'!B89,"?") -> ? | B81: =IF('Загальний ввод'!#REF!<1,0,IF('Загальний ввод'!#REF!<1,0,IF('Загальний ввод'!#REF!<1,0,'Загальний ввод'!#REF!))) -> 
A82: =IF(SUM('Загальний ввод'!R90:Z90),'Загальний ввод'!B90,"?") -> ? | B82: =IF('Загальний ввод'!#REF!<1,0,IF('Загальний ввод'!#REF!<1,0,IF('Загальний ввод'!#REF!<1,0,'Загальний ввод'!#REF!))) -> 
A83: =IF(SUM('Загальний ввод'!R91:Z91),'Загальний ввод'!B91,"?") -> ? | B83: =IF('Загальний ввод'!#REF!<1,0,IF('Загальний ввод'!#REF!<1,0,IF('Загальний ввод'!#REF!<1,0,'Загальний ввод'!#REF!))) -> 
A84: =IF(SUM('Загальний ввод'!R92:Z92),'Загальний ввод'!B92,"?") -> ? | B84: =IF('Загальний ввод'!#REF!<1,0,IF('Загальний ввод'!#REF!<1,0,IF('Загальний ввод'!#REF!<1,0,'Загальний ввод'!#REF!))) -> 
A85: =IF(SUM('Загальний ввод'!R93:Z93),'Загальний ввод'!B93,"?") -> ? | B85: =IF('Загальний ввод'!#REF!<1,0,IF('Загальний ввод'!#REF!<1,0,IF('Загальний ввод'!#REF!<1,0,'Загальний ввод'!#REF!))) -> 
A86: =IF(SUM('Загальний ввод'!R94:Z94),'Загальний ввод'!B94,"?") -> ? | B86: =IF('Загальний ввод'!#REF!<1,0,IF('Загальний ввод'!#REF!<1,0,IF('Загальний ввод'!#REF!<1,0,'Загальний ввод'!#REF!))) -> 
A87: =IF(SUM('Загальний ввод'!R95:Z95),'Загальний ввод'!B95,"?") -> ? | B87: =IF('Загальний ввод'!#REF!<1,0,IF('Загальний ввод'!#REF!<1,0,IF('Загальний ввод'!#REF!<1,0,'Загальний ввод'!#REF!))) -> 
A88: =IF(SUM('Загальний ввод'!R96:Z96),'Загальний ввод'!B96,"?") -> ? | B88: =IF('Загальний ввод'!R30<1,0,IF('Загальний ввод'!S30<1,0,IF('Загальний ввод'!T30<1,0,'Загальний ввод'!B30))) -> 0
A89: =IF(SUM('Загальний ввод'!R97:Z97),'Загальний ввод'!B97,"?") -> ? | B89: =IF('Загальний ввод'!R31<1,0,IF('Загальний ввод'!S31<1,0,IF('Загальний ввод'!T31<1,0,'Загальний ввод'!B31))) -> 0
A90: =IF(SUM('Загальний ввод'!R98:Z98),'Загальний ввод'!B98,"?") -> ? | B90: =IF('Загальний ввод'!R32<1,0,IF('Загальний ввод'!S32<1,0,IF('Загальний ввод'!T32<1,0,'Загальний ввод'!B32))) -> 0
A91: =IF(SUM('Загальний ввод'!R99:Z99),'Загальний ввод'!B99,"?") -> ? | B91: =IF('Загальний ввод'!R33<1,0,IF('Загальний ввод'!S33<1,0,IF('Загальний ввод'!T33<1,0,'Загальний ввод'!B33))) -> 0
A92: =IF(SUM('Загальний ввод'!R100:Z100),'Загальний ввод'!B100,"?") -> ? | B92: =IF('Загальний ввод'!R34<1,0,IF('Загальний ввод'!S34<1,0,IF('Загальний ввод'!T34<1,0,'Загальний ввод'!B34))) -> 0
A93: =IF(SUM('Загальний ввод'!R101:Z101),'Загальний ввод'!B101,"?") -> ? | B93: =IF('Загальний ввод'!R35<1,0,IF('Загальний ввод'!S35<1,0,IF('Загальний ввод'!T35<1,0,'Загальний ввод'!B35))) -> 0
A94: =IF(SUM('Загальний ввод'!R102:Z102),'Загальний ввод'!B102,"?") -> ? | B94: =IF('Загальний ввод'!R36<1,0,IF('Загальний ввод'!S36<1,0,IF('Загальний ввод'!T36<1,0,'Загальний ввод'!B36))) -> 0
A95: =IF(SUM('Загальний ввод'!R103:Z103),'Загальний ввод'!B103,"?") -> ? | B95: =IF('Загальний ввод'!R37<1,0,IF('Загальний ввод'!S37<1,0,IF('Загальний ввод'!T37<1,0,'Загальний ввод'!B37))) -> 0
A96: =IF(SUM('Загальний ввод'!R104:Z104),'Загальний ввод'!B104,"?") -> ? | B96: =IF('Загальний ввод'!R38<1,0,IF('Загальний ввод'!S38<1,0,IF('Загальний ввод'!T38<1,0,'Загальний ввод'!B38))) -> 0
A97: =IF(SUM('Загальний ввод'!R105:Z105),'Загальний ввод'!B105,"?") -> ? | B97: =IF('Загальний ввод'!#REF!<1,0,IF('Загальний ввод'!#REF!<1,0,IF('Загальний ввод'!#REF!<1,0,'Загальний ввод'!#REF!))) -> 
A98: =IF(SUM('Загальний ввод'!R106:Z106),'Загальний ввод'!B106,"?") -> ? | B98: =IF('Загальний ввод'!#REF!<1,0,IF('Загальний ввод'!#REF!<1,0,IF('Загальний ввод'!#REF!<1,0,'Загальний ввод'!#REF!))) -> 
A99: =IF(SUM('Загальний ввод'!R107:Z107),'Загальний ввод'!B107,"?") -> ? | B99: =IF('Загальний ввод'!#REF!<1,0,IF('Загальний ввод'!#REF!<1,0,IF('Загальний ввод'!#REF!<1,0,'Загальний ввод'!#REF!))) -> 
A100: =IF(SUM('Загальний ввод'!R108:Z108),'Загальний ввод'!B108,"?") -> ? | B100: =IF('Загальний ввод'!#REF!<1,0,IF('Загальний ввод'!#REF!<1,0,IF('Загальний ввод'!#REF!<1,0,'Загальний ввод'!#REF!))) -> 
A101: =IF(SUM('Загальний ввод'!R109:Z109),'Загальний ввод'!B109,"?") -> ? | B101: =IF('Загальний ввод'!#REF!<1,0,IF('Загальний ввод'!#REF!<1,0,IF('Загальний ввод'!#REF!<1,0,'Загальний ввод'!#REF!))) -> 
A102: =IF(SUM('Загальний ввод'!R110:Z110),'Загальний ввод'!B110,"?") -> ? | B102: =IF('Загальний ввод'!#REF!<1,0,IF('Загальний ввод'!#REF!<1,0,IF('Загальний ввод'!#REF!<1,0,'Загальний ввод'!#REF!))) -> 
A103: =IF(SUM('Загальний ввод'!R111:Z111),'Загальний ввод'!B111,"?") -> ? | B103: =IF('Загальний ввод'!#REF!<1,0,IF('Загальний ввод'!#REF!<1,0,IF('Загальний ввод'!#REF!<1,0,'Загальний ввод'!#REF!))) -> 
A104: =IF(SUM('Загальний ввод'!R112:Z112),'Загальний ввод'!B112,"?") -> ? | B104: =IF('Загальний ввод'!#REF!<1,0,IF('Загальний ввод'!#REF!<1,0,IF('Загальний ввод'!#REF!<1,0,'Загальний ввод'!#REF!))) -> 
A105: =IF(SUM('Загальний ввод'!R113:Z113),'Загальний ввод'!B113,"?") -> ? | B105: =IF('Загальний ввод'!#REF!<1,0,IF('Загальний ввод'!#REF!<1,0,IF('Загальний ввод'!#REF!<1,0,'Загальний ввод'!#REF!))) -> 
A106: =IF(SUM('Загальний ввод'!R114:Z114),'Загальний ввод'!B114,"?") -> ? | B106: =IF('Загальний ввод'!#REF!<1,0,IF('Загальний ввод'!#REF!<1,0,IF('Загальний ввод'!#REF!<1,0,'Загальний ввод'!#REF!))) -> 
A107: =IF(SUM('Загальний ввод'!R115:Z115),'Загальний ввод'!B115,"?") -> ? | B107: =IF('Загальний ввод'!#REF!<1,0,IF('Загальний ввод'!#REF!<1,0,IF('Загальний ввод'!#REF!<1,0,'Загальний ввод'!#REF!))) -> 
A108: =IF(SUM('Загальний ввод'!R116:Z116),'Загальний ввод'!B116,"?") -> ? | B108: =IF('Загальний ввод'!#REF!<1,0,IF('Загальний ввод'!#REF!<1,0,IF('Загальний ввод'!#REF!<1,0,'Загальний ввод'!#REF!))) -> 
A109: =IF(SUM('Загальний ввод'!R117:Z117),'Загальний ввод'!B117,"?") -> ? | B109: =IF('Загальний ввод'!#REF!<1,0,IF('Загальний ввод'!#REF!<1,0,IF('Загальний ввод'!#REF!<1,0,'Загальний ввод'!#REF!))) -> 
A110: =IF(SUM('Загальний ввод'!R118:Z118),'Загальний ввод'!B118,"?") -> ? | B110: =IF('Загальний ввод'!#REF!<1,0,IF('Загальний ввод'!#REF!<1,0,IF('Загальний ввод'!#REF!<1,0,'Загальний ввод'!#REF!))) -> 
A111: =IF(SUM('Загальний ввод'!R119:Z119),'Загальний ввод'!B119,"?") -> ? | B111: =IF('Загальний ввод'!#REF!<1,0,IF('Загальний ввод'!#REF!<1,0,IF('Загальний ввод'!#REF!<1,0,'Загальний ввод'!#REF!))) -> 
A112: =IF(SUM('Загальний ввод'!R120:Z120),'Загальний ввод'!B120,"?") -> ? | B112: =IF('Загальний ввод'!#REF!<1,0,IF('Загальний ввод'!#REF!<1,0,IF('Загальний ввод'!#REF!<1,0,'Загальний ввод'!#REF!))) -> 
A113: =IF(SUM('Загальний ввод'!R121:Z121),'Загальний ввод'!B121,"?") -> ? | B113: =IF('Загальний ввод'!#REF!<1,0,IF('Загальний ввод'!#REF!<1,0,IF('Загальний ввод'!#REF!<1,0,'Загальний ввод'!#REF!))) -> 
A114: =IF(SUM('Загальний ввод'!R122:Z122),'Загальний ввод'!B122,"?") -> ? | B114: =IF('Загальний ввод'!#REF!<1,0,IF('Загальний ввод'!#REF!<1,0,IF('Загальний ввод'!#REF!<1,0,'Загальний ввод'!#REF!))) -> 
A115: =IF(SUM('Загальний ввод'!R123:Z123),'Загальний ввод'!B123,"?") -> ? | B115: =IF('Загальний ввод'!#REF!<1,0,IF('Загальний ввод'!#REF!<1,0,IF('Загальний ввод'!#REF!<1,0,'Загальний ввод'!#REF!))) -> 
A116: =IF(SUM('Загальний ввод'!R124:Z124),'Загальний ввод'!B124,"?") -> ? | B116: =IF('Загальний ввод'!#REF!<1,0,IF('Загальний ввод'!#REF!<1,0,IF('Загальний ввод'!#REF!<1,0,'Загальний ввод'!#REF!))) -> 
A117: =IF(SUM('Загальний ввод'!R125:Z125),'Загальний ввод'!B125,"?") -> ? | B117: =IF('Загальний ввод'!#REF!<1,0,IF('Загальний ввод'!#REF!<1,0,IF('Загальний ввод'!#REF!<1,0,'Загальний ввод'!#REF!))) -> 
A118: =IF(SUM('Загальний ввод'!R126:Z126),'Загальний ввод'!B126,"?") -> ? | B118: =IF('Загальний ввод'!#REF!<1,0,IF('Загальний ввод'!#REF!<1,0,IF('Загальний ввод'!#REF!<1,0,'Загальний ввод'!#REF!))) -> 
A119: =IF(SUM('Загальний ввод'!R127:Z127),'Загальний ввод'!B127,"?") -> ? | B119: =IF('Загальний ввод'!#REF!<1,0,IF('Загальний ввод'!#REF!<1,0,IF('Загальний ввод'!#REF!<1,0,'Загальний ввод'!#REF!))) -> 
A120: =IF(SUM('Загальний ввод'!R128:Z128),'Загальний ввод'!B128,"?") -> ? | B120: =IF('Загальний ввод'!#REF!<1,0,IF('Загальний ввод'!#REF!<1,0,IF('Загальний ввод'!#REF!<1,0,'Загальний ввод'!#REF!))) -> 
A121: =IF(SUM('Загальний ввод'!R129:Z129),'Загальний ввод'!B129,"?") -> ? | B121: =IF('Загальний ввод'!#REF!<1,0,IF('Загальний ввод'!#REF!<1,0,IF('Загальний ввод'!#REF!<1,0,'Загальний ввод'!#REF!))) -> 
A122: =IF(SUM('Загальний ввод'!R130:Z130),'Загальний ввод'!B130,"?") -> ? | B122: =IF('Загальний ввод'!R39<1,0,IF('Загальний ввод'!S39<1,0,IF('Загальний ввод'!T39<1,0,'Загальний ввод'!#REF!))) -> 0
A123: =IF(SUM('Загальний ввод'!R131:Z131),'Загальний ввод'!B131,"?") -> ? | B123: =IF('Загальний ввод'!R40<1,0,IF('Загальний ввод'!S40<1,0,IF('Загальний ввод'!T40<1,0,'Загальний ввод'!B40))) -> 0
A124: =IF(SUM('Загальний ввод'!R132:Z132),'Загальний ввод'!B132,"?") -> ? | B124: =IF('Загальний ввод'!R41<1,0,IF('Загальний ввод'!S41<1,0,IF('Загальний ввод'!T41<1,0,'Загальний ввод'!B41))) -> 0
A125: =IF(SUM('Загальний ввод'!R133:Z133),'Загальний ввод'!B133,"?") -> ? | B125: =IF('Загальний ввод'!R42<1,0,IF('Загальний ввод'!S42<1,0,IF('Загальний ввод'!T42<1,0,'Загальний ввод'!B42))) -> 0
A126: =IF(SUM('Загальний ввод'!R134:Z134),'Загальний ввод'!B134,"?") -> ? | B126: =IF('Загальний ввод'!R43<1,0,IF('Загальний ввод'!S43<1,0,IF('Загальний ввод'!T43<1,0,'Загальний ввод'!B43))) -> 0
A127: =IF(SUM('Загальний ввод'!R135:Z135),'Загальний ввод'!B135,"?") -> ? | B127: =IF('Загальний ввод'!R44<1,0,IF('Загальний ввод'!S44<1,0,IF('Загальний ввод'!T44<1,0,'Загальний ввод'!B44))) -> 0
A128: =IF(SUM('Загальний ввод'!R136:Z136),'Загальний ввод'!B136,"?") -> ? | B128: =IF('Загальний ввод'!R45<1,0,IF('Загальний ввод'!S45<1,0,IF('Загальний ввод'!T45<1,0,'Загальний ввод'!B45))) -> 0
A129: =IF(SUM('Загальний ввод'!R137:Z137),'Загальний ввод'!B137,"?") -> ? | B129: =IF('Загальний ввод'!R46<1,0,IF('Загальний ввод'!S46<1,0,IF('Загальний ввод'!T46<1,0,'Загальний ввод'!B46))) -> 0
A130: =IF(SUM('Загальний ввод'!R138:Z138),'Загальний ввод'!B138,"?") -> ? | B130: =IF('Загальний ввод'!R47<1,0,IF('Загальний ввод'!S47<1,0,IF('Загальний ввод'!T47<1,0,'Загальний ввод'!B47))) -> 0
A131: =IF(SUM('Загальний ввод'!R139:Z139),'Загальний ввод'!B139,"?") -> ? | B131: =IF('Загальний ввод'!R48<1,0,IF('Загальний ввод'!S48<1,0,IF('Загальний ввод'!T48<1,0,'Загальний ввод'!B48))) -> 0
A132: =IF(SUM('Загальний ввод'!R140:Z140),'Загальний ввод'!B140,"?") -> ? | B132: =IF('Загальний ввод'!R49<1,0,IF('Загальний ввод'!S49<1,0,IF('Загальний ввод'!T49<1,0,'Загальний ввод'!B49))) -> 0
A133: =IF(SUM('Загальний ввод'!R141:Z141),'Загальний ввод'!B141,"?") -> ? | B133: =IF('Загальний ввод'!R50<1,0,IF('Загальний ввод'!S50<1,0,IF('Загальний ввод'!T50<1,0,'Загальний ввод'!B50))) -> 0
A134: =IF(SUM('Загальний ввод'!R142:Z142),'Загальний ввод'!B142,"?") -> ? | B134: =IF('Загальний ввод'!R51<1,0,IF('Загальний ввод'!S51<1,0,IF('Загальний ввод'!T51<1,0,'Загальний ввод'!B51))) -> 0
A135: =IF(SUM('Загальний ввод'!R143:Z143),'Загальний ввод'!B143,"?") -> ? | B135: =IF('Загальний ввод'!R52<1,0,IF('Загальний ввод'!S52<1,0,IF('Загальний ввод'!T52<1,0,'Загальний ввод'!B52))) -> 0
A136: =IF(SUM('Загальний ввод'!R144:Z144),'Загальний ввод'!B144,"?") -> ? | B136: =IF('Загальний ввод'!R53<1,0,IF('Загальний ввод'!S53<1,0,IF('Загальний ввод'!T53<1,0,'Загальний ввод'!B53))) -> 0
A137: =IF(SUM('Загальний ввод'!R145:Z145),'Загальний ввод'!B145,"?") -> ? | B137: =IF('Загальний ввод'!R54<1,0,IF('Загальний ввод'!S54<1,0,IF('Загальний ввод'!T54<1,0,'Загальний ввод'!B54))) -> 0
A138: =IF(SUM('Загальний ввод'!R146:Z146),'Загальний ввод'!B146,"?") -> ? | B138: =IF('Загальний ввод'!R55<1,0,IF('Загальний ввод'!S55<1,0,IF('Загальний ввод'!T55<1,0,'Загальний ввод'!B55))) -> 0
A139: =IF(SUM('Загальний ввод'!R147:Z147),'Загальний ввод'!B147,"?") -> ? | B139: =IF('Загальний ввод'!R56<1,0,IF('Загальний ввод'!S56<1,0,IF('Загальний ввод'!T56<1,0,'Загальний ввод'!B56))) -> 0
A140: =IF(SUM('Загальний ввод'!R148:Z148),'Загальний ввод'!B148,"?") -> ? | B140: =IF('Загальний ввод'!R57<1,0,IF('Загальний ввод'!S57<1,0,IF('Загальний ввод'!T57<1,0,'Загальний ввод'!B57))) -> 0
A141: =IF(SUM('Загальний ввод'!R149:Z149),'Загальний ввод'!B149,"?") -> ? | B141: =IF('Загальний ввод'!R58<1,0,IF('Загальний ввод'!S58<1,0,IF('Загальний ввод'!T58<1,0,'Загальний ввод'!B58))) -> 0
A142: =IF(SUM('Загальний ввод'!R150:Z150),'Загальний ввод'!B150,"?") -> ? | B142: =IF('Загальний ввод'!R59<1,0,IF('Загальний ввод'!S59<1,0,IF('Загальний ввод'!T59<1,0,'Загальний ввод'!B59))) -> 0
A143: =IF(SUM('Загальний ввод'!R151:Z151),'Загальний ввод'!B151,"?") -> ? | B143: =IF('Загальний ввод'!R60<1,0,IF('Загальний ввод'!S60<1,0,IF('Загальний ввод'!T60<1,0,'Загальний ввод'!B60))) -> 0
A144: =IF(SUM('Загальний ввод'!R152:Z152),'Загальний ввод'!B152,"?") -> ? | B144: =IF('Загальний ввод'!R61<1,0,IF('Загальний ввод'!S61<1,0,IF('Загальний ввод'!T61<1,0,'Загальний ввод'!B61))) -> 0
A145: =IF(SUM('Загальний ввод'!R153:Z153),'Загальний ввод'!B153,"?") -> ? | B145: =IF('Загальний ввод'!R62<1,0,IF('Загальний ввод'!S62<1,0,IF('Загальний ввод'!T62<1,0,'Загальний ввод'!B62))) -> 0
A146: =IF(SUM('Загальний ввод'!R154:Z154),'Загальний ввод'!B154,"?") -> ? | B146: =IF('Загальний ввод'!R63<1,0,IF('Загальний ввод'!S63<1,0,IF('Загальний ввод'!T63<1,0,'Загальний ввод'!B63))) -> 0
A147: =IF(SUM('Загальний ввод'!R155:Z155),'Загальний ввод'!B155,"?") -> ? | B147: =IF('Загальний ввод'!R64<1,0,IF('Загальний ввод'!S64<1,0,IF('Загальний ввод'!T64<1,0,'Загальний ввод'!B64))) -> 0
A148: =IF(SUM('Загальний ввод'!R156:Z156),'Загальний ввод'!B156,"?") -> ? | B148: =IF('Загальний ввод'!R65<1,0,IF('Загальний ввод'!S65<1,0,IF('Загальний ввод'!T65<1,0,'Загальний ввод'!B65))) -> 0
A149: =IF(SUM('Загальний ввод'!R157:Z157),'Загальний ввод'!B157,"?") -> ? | B149: =IF('Загальний ввод'!R66<1,0,IF('Загальний ввод'!S66<1,0,IF('Загальний ввод'!T66<1,0,'Загальний ввод'!B66))) -> 0
A150: =IF(SUM('Загальний ввод'!R158:Z158),'Загальний ввод'!B158,"?") -> ? | B150: =IF('Загальний ввод'!R67<1,0,IF('Загальний ввод'!S67<1,0,IF('Загальний ввод'!T67<1,0,'Загальний ввод'!B67))) -> 0
A151: =IF(SUM('Загальний ввод'!R159:Z159),'Загальний ввод'!B159,"?") -> ? | B151: =IF('Загальний ввод'!R68<1,0,IF('Загальний ввод'!S68<1,0,IF('Загальний ввод'!T68<1,0,'Загальний ввод'!B68))) -> 0
A152: =IF(SUM('Загальний ввод'!R160:Z160),'Загальний ввод'!B160,"?") -> ? | B152: =IF('Загальний ввод'!R69<1,0,IF('Загальний ввод'!S69<1,0,IF('Загальний ввод'!T69<1,0,'Загальний ввод'!B69))) -> 0
A153: =IF(SUM('Загальний ввод'!R161:Z161),'Загальний ввод'!B161,"?") -> ? | B153: =IF('Загальний ввод'!R70<1,0,IF('Загальний ввод'!S70<1,0,IF('Загальний ввод'!T70<1,0,'Загальний ввод'!B70))) -> 0
A154: =IF(SUM('Загальний ввод'!R162:Z162),'Загальний ввод'!B162,"?") -> ? | B154: =IF('Загальний ввод'!R71<1,0,IF('Загальний ввод'!S71<1,0,IF('Загальний ввод'!T71<1,0,'Загальний ввод'!B71))) -> 0
A155: =IF(SUM('Загальний ввод'!R163:Z163),'Загальний ввод'!B163,"?") -> ? | B155: =IF('Загальний ввод'!R72<1,0,IF('Загальний ввод'!S72<1,0,IF('Загальний ввод'!T72<1,0,'Загальний ввод'!B72))) -> 0
A156: =IF(SUM('Загальний ввод'!R164:Z164),'Загальний ввод'!B164,"?") -> ? | B156: =IF('Загальний ввод'!R73<1,0,IF('Загальний ввод'!S73<1,0,IF('Загальний ввод'!T73<1,0,'Загальний ввод'!B73))) -> 0
A157: =IF(SUM('Загальний ввод'!R165:Z165),'Загальний ввод'!B165,"?") -> ? | B157: =IF('Загальний ввод'!R74<1,0,IF('Загальний ввод'!S74<1,0,IF('Загальний ввод'!T74<1,0,'Загальний ввод'!B74))) -> 0
A158: =IF(SUM('Загальний ввод'!R166:Z166),'Загальний ввод'!B166,"?") -> ? | B158: =IF('Загальний ввод'!R75<1,0,IF('Загальний ввод'!S75<1,0,IF('Загальний ввод'!T75<1,0,'Загальний ввод'!B75))) -> 0
A159: =IF(SUM('Загальний ввод'!R167:Z167),'Загальний ввод'!B167,"?") -> ? | B159: =IF('Загальний ввод'!R76<1,0,IF('Загальний ввод'!S76<1,0,IF('Загальний ввод'!T76<1,0,'Загальний ввод'!B76))) -> 0
A160: =IF(SUM('Загальний ввод'!R168:Z168),'Загальний ввод'!B168,"?") -> ? | B160: =IF('Загальний ввод'!R77<1,0,IF('Загальний ввод'!S77<1,0,IF('Загальний ввод'!T77<1,0,'Загальний ввод'!B77))) -> 0
A161: =IF(SUM('Загальний ввод'!R169:Z169),'Загальний ввод'!B169,"?") -> ? | B161: =IF('Загальний ввод'!R78<1,0,IF('Загальний ввод'!S78<1,0,IF('Загальний ввод'!T78<1,0,'Загальний ввод'!B78))) -> 0
A162: =IF(SUM('Загальний ввод'!R170:Z170),'Загальний ввод'!B170,"?") -> ? | B162: =IF('Загальний ввод'!R79<1,0,IF('Загальний ввод'!S79<1,0,IF('Загальний ввод'!T79<1,0,'Загальний ввод'!B79))) -> 0
A163: =IF(SUM('Загальний ввод'!R171:Z171),'Загальний ввод'!B171,"?") -> ? | B163: =IF('Загальний ввод'!R80<1,0,IF('Загальний ввод'!S80<1,0,IF('Загальний ввод'!T80<1,0,'Загальний ввод'!B80))) -> 0
A164: =IF(SUM('Загальний ввод'!R172:Z172),'Загальний ввод'!B172,"?") -> ? | B164: =IF('Загальний ввод'!R81<1,0,IF('Загальний ввод'!S81<1,0,IF('Загальний ввод'!T81<1,0,'Загальний ввод'!B81))) -> 0
A165: =IF(SUM('Загальний ввод'!R173:Z173),'Загальний ввод'!B173,"?") -> ? | B165: =IF('Загальний ввод'!R82<1,0,IF('Загальний ввод'!S82<1,0,IF('Загальний ввод'!T82<1,0,'Загальний ввод'!B82))) -> 0
A166: =IF(SUM('Загальний ввод'!R174:Z174),'Загальний ввод'!B174,"?") -> ? | B166: =IF('Загальний ввод'!R83<1,0,IF('Загальний ввод'!S83<1,0,IF('Загальний ввод'!T83<1,0,'Загальний ввод'!B83))) -> 0
A167: =IF(SUM('Загальний ввод'!R175:Z175),'Загальний ввод'!B175,"?") -> ? | B167: =IF('Загальний ввод'!R84<1,0,IF('Загальний ввод'!S84<1,0,IF('Загальний ввод'!T84<1,0,'Загальний ввод'!B84))) -> 0
A168: =IF(SUM('Загальний ввод'!R176:Z176),'Загальний ввод'!B176,"?") -> ? | B168: =IF('Загальний ввод'!R85<1,0,IF('Загальний ввод'!S85<1,0,IF('Загальний ввод'!T85<1,0,'Загальний ввод'!B85))) -> 0
A169: =IF(SUM('Загальний ввод'!R177:Z177),'Загальний ввод'!B177,"?") -> ? | B169: =IF('Загальний ввод'!R86<1,0,IF('Загальний ввод'!S86<1,0,IF('Загальний ввод'!T86<1,0,'Загальний ввод'!B86))) -> 0
A170: =IF(SUM('Загальний ввод'!R178:Z178),'Загальний ввод'!B178,"?") -> ? | B170: =IF('Загальний ввод'!R87<1,0,IF('Загальний ввод'!S87<1,0,IF('Загальний ввод'!T87<1,0,'Загальний ввод'!B87))) -> 0
A171: =IF(SUM('Загальний ввод'!R179:Z179),'Загальний ввод'!B179,"?") -> ? | B171: =IF('Загальний ввод'!R88<1,0,IF('Загальний ввод'!S88<1,0,IF('Загальний ввод'!T88<1,0,'Загальний ввод'!B88))) -> 0
A172: =IF(SUM('Загальний ввод'!R180:Z180),'Загальний ввод'!B180,"?") -> ? | B172: =IF('Загальний ввод'!R89<1,0,IF('Загальний ввод'!S89<1,0,IF('Загальний ввод'!T89<1,0,'Загальний ввод'!B89))) -> 0
A173: =IF(SUM('Загальний ввод'!R181:Z181),'Загальний ввод'!B181,"?") -> ? | B173: =IF('Загальний ввод'!R90<1,0,IF('Загальний ввод'!S90<1,0,IF('Загальний ввод'!T90<1,0,'Загальний ввод'!B90))) -> 0
A174: =IF(SUM('Загальний ввод'!R182:Z182),'Загальний ввод'!B182,"?") -> ? | B174: =IF('Загальний ввод'!R91<1,0,IF('Загальний ввод'!S91<1,0,IF('Загальний ввод'!T91<1,0,'Загальний ввод'!B91))) -> 0
A175: =IF(SUM('Загальний ввод'!R183:Z183),'Загальний ввод'!B183,"?") -> ? | B175: =IF('Загальний ввод'!R92<1,0,IF('Загальний ввод'!S92<1,0,IF('Загальний ввод'!T92<1,0,'Загальний ввод'!B92))) -> 0
A176: =IF(SUM('Загальний ввод'!R184:Z184),'Загальний ввод'!B184,"?") -> ? | B176: =IF('Загальний ввод'!R93<1,0,IF('Загальний ввод'!S93<1,0,IF('Загальний ввод'!T93<1,0,'Загальний ввод'!B93))) -> 0
A177: =IF(SUM('Загальний ввод'!R185:Z185),'Загальний ввод'!B185,"?") -> ? | B177: =IF('Загальний ввод'!R94<1,0,IF('Загальний ввод'!S94<1,0,IF('Загальний ввод'!T94<1,0,'Загальний ввод'!B94))) -> 0
A178: =IF(SUM('Загальний ввод'!R186:Z186),'Загальний ввод'!B186,"?") -> ? | B178: =IF('Загальний ввод'!R95<1,0,IF('Загальний ввод'!S95<1,0,IF('Загальний ввод'!T95<1,0,'Загальний ввод'!B95))) -> 0
A179: =IF(SUM('Загальний ввод'!R187:Z187),'Загальний ввод'!B187,"?") -> ? | B179: =IF('Загальний ввод'!R96<1,0,IF('Загальний ввод'!S96<1,0,IF('Загальний ввод'!T96<1,0,'Загальний ввод'!B96))) -> 0
A180: =IF(SUM('Загальний ввод'!R188:Z188),'Загальний ввод'!B188,"?") -> ? | B180: =IF('Загальний ввод'!R97<1,0,IF('Загальний ввод'!S97<1,0,IF('Загальний ввод'!T97<1,0,'Загальний ввод'!B97))) -> 0
A181: =IF(SUM('Загальний ввод'!R189:Z189),'Загальний ввод'!B189,"?") -> ? | B181: =IF('Загальний ввод'!R98<1,0,IF('Загальний ввод'!S98<1,0,IF('Загальний ввод'!T98<1,0,'Загальний ввод'!B98))) -> 0
A182: =IF(SUM('Загальний ввод'!R190:Z190),'Загальний ввод'!B190,"?") -> ? | B182: =IF('Загальний ввод'!R99<1,0,IF('Загальний ввод'!S99<1,0,IF('Загальний ввод'!T99<1,0,'Загальний ввод'!B99))) -> 0
A183: =IF(SUM('Загальний ввод'!R191:Z191),'Загальний ввод'!B191,"?") -> ? | B183: =IF('Загальний ввод'!R100<1,0,IF('Загальний ввод'!S100<1,0,IF('Загальний ввод'!T100<1,0,'Загальний ввод'!B100))) -> 0
A184: =IF(SUM('Загальний ввод'!R192:Z192),'Загальний ввод'!B192,"?") -> ? | B184: =IF('Загальний ввод'!R101<1,0,IF('Загальний ввод'!S101<1,0,IF('Загальний ввод'!T101<1,0,'Загальний ввод'!B101))) -> 0
A185: =IF(SUM('Загальний ввод'!R193:Z193),'Загальний ввод'!B193,"?") -> ? | B185: =IF('Загальний ввод'!R102<1,0,IF('Загальний ввод'!S102<1,0,IF('Загальний ввод'!T102<1,0,'Загальний ввод'!B102))) -> 0
A186: =IF(SUM('Загальний ввод'!R194:Z194),'Загальний ввод'!B194,"?") -> ? | B186: =IF('Загальний ввод'!R103<1,0,IF('Загальний ввод'!S103<1,0,IF('Загальний ввод'!T103<1,0,'Загальний ввод'!B103))) -> 0
A187: =IF(SUM('Загальний ввод'!R195:Z195),'Загальний ввод'!B195,"?") -> ? | B187: =IF('Загальний ввод'!R104<1,0,IF('Загальний ввод'!S104<1,0,IF('Загальний ввод'!T104<1,0,'Загальний ввод'!B104))) -> 0
A188: =IF(SUM('Загальний ввод'!R196:Z196),'Загальний ввод'!B196,"?") -> ? | B188: =IF('Загальний ввод'!R105<1,0,IF('Загальний ввод'!S105<1,0,IF('Загальний ввод'!T105<1,0,'Загальний ввод'!B105))) -> 0
A189: =IF(SUM('Загальний ввод'!R197:Z197),'Загальний ввод'!B197,"?") -> ? | B189: =IF('Загальний ввод'!R106<1,0,IF('Загальний ввод'!S106<1,0,IF('Загальний ввод'!T106<1,0,'Загальний ввод'!B106))) -> 0
A190: =IF(SUM('Загальний ввод'!R198:Z198),'Загальний ввод'!B198,"?") -> ? | B190: =IF('Загальний ввод'!R107<1,0,IF('Загальний ввод'!S107<1,0,IF('Загальний ввод'!T107<1,0,'Загальний ввод'!B107))) -> 0
A191: =IF(SUM('Загальний ввод'!R199:Z199),'Загальний ввод'!B199,"?") -> ? | B191: =IF('Загальний ввод'!R108<1,0,IF('Загальний ввод'!S108<1,0,IF('Загальний ввод'!T108<1,0,'Загальний ввод'!B108))) -> 0
A192: =IF(SUM('Загальний ввод'!R200:Z200),'Загальний ввод'!B200,"?") -> ? | B192: =IF('Загальний ввод'!R109<1,0,IF('Загальний ввод'!S109<1,0,IF('Загальний ввод'!T109<1,0,'Загальний ввод'!B109))) -> 0
A193: =IF(SUM('Загальний ввод'!R201:Z201),'Загальний ввод'!B201,"?") -> ? | B193: =IF('Загальний ввод'!R110<1,0,IF('Загальний ввод'!S110<1,0,IF('Загальний ввод'!T110<1,0,'Загальний ввод'!B110))) -> 0
A194: =IF(SUM('Загальний ввод'!R202:Z202),'Загальний ввод'!B202,"?") -> ? | B194: =IF('Загальний ввод'!R111<1,0,IF('Загальний ввод'!S111<1,0,IF('Загальний ввод'!T111<1,0,'Загальний ввод'!B111))) -> 0
A195: =IF(SUM('Загальний ввод'!R203:Z203),'Загальний ввод'!B203,"?") -> ? | B195: =IF('Загальний ввод'!R112<1,0,IF('Загальний ввод'!S112<1,0,IF('Загальний ввод'!T112<1,0,'Загальний ввод'!B112))) -> 0
A196: =IF(SUM('Загальний ввод'!R204:Z204),'Загальний ввод'!B204,"?") -> ? | B196: =IF('Загальний ввод'!R113<1,0,IF('Загальний ввод'!S113<1,0,IF('Загальний ввод'!T113<1,0,'Загальний ввод'!B113))) -> 0
A197: =IF(SUM('Загальний ввод'!R205:Z205),'Загальний ввод'!B205,"?") -> ? | B197: =IF('Загальний ввод'!R114<1,0,IF('Загальний ввод'!S114<1,0,IF('Загальний ввод'!T114<1,0,'Загальний ввод'!B114))) -> 0
A198: =IF(SUM('Загальний ввод'!R206:Z206),'Загальний ввод'!B206,"?") -> ? | B198: =IF('Загальний ввод'!R115<1,0,IF('Загальний ввод'!S115<1,0,IF('Загальний ввод'!T115<1,0,'Загальний ввод'!B115))) -> 0
A199: =IF(SUM('Загальний ввод'!R207:Z207),'Загальний ввод'!B207,"?") -> ? | B199: =IF('Загальний ввод'!R116<1,0,IF('Загальний ввод'!S116<1,0,IF('Загальний ввод'!T116<1,0,'Загальний ввод'!B116))) -> 0
A200: =IF(SUM('Загальний ввод'!R208:Z208),'Загальний ввод'!B208,"?") -> ? | B200: =IF('Загальний ввод'!R117<1,0,IF('Загальний ввод'!S117<1,0,IF('Загальний ввод'!T117<1,0,'Загальний ввод'!B117))) -> 0
A201: =IF(SUM('Загальний ввод'!R209:Z209),'Загальний ввод'!B209,"?") -> ? | B201: =IF('Загальний ввод'!R118<1,0,IF('Загальний ввод'!S118<1,0,IF('Загальний ввод'!T118<1,0,'Загальний ввод'!B118))) -> 0
... 114 more rows
